fUSD/lending_fUSD_20250113
["ID","MTS","AMOUNT","RATE_DAILY","PERIOD"]
[348795150,1736787051884,-500.0,0.00010272,2]
[348795152,1736787051894,-500.0,0.00010272,2]
[348795154,1736787051903,-500.0,0.00010272,2]
[348795156,1736787051912,-500.0,0.00010272,2]
[348795158,1736787051921,-500.0,0.00010272,2]
[348795160,1736787051931,-500.0,0.00010272,2]
[348795162,1736787051940,-786.8,0.00010272,2]
[348795164,1736787051950,-684.01,0.00010272,2]
[348795166,1736787051960,-500.0,0.00010272,2]
[348795168,1736787051970,-500.0,0.00010272,2]
[348795170,1736787051980,-804.45,0.00010272,2]
[348795172,1736787051990,-500.0,0.00010272,2]
[348795174,1736787051999,-500.0,0.00010272,2]
[348795175,1736787052009,-500.0,0.00010272,2]
[348795177,1736787052019,-500.0,0.00010272,2]
[348795179,1736787052028,-500.0,0.00010272,2]
[348795181,1736787052037,-500.0,0.00010272,2]
[348795183,1736787052047,-500.0,0.00010272,2]
[348795185,1736787052056,-649.64423754,0.00010272,2]
[348795187,1736787052065,-500.0,0.00010272,2]
[348795189,1736787052074,-852.08,0.00010272,2]
[348795191,1736787052084,-500.0,0.00010272,2]
[348795193,1736787052093,-500.0,0.00010272,2]
[348795195,1736787052102,-500.0,0.00010272,2]
[348795197,1736787052113,-500.0,0.00010272,2]
[348795199,1736787052122,-500.0,0.00010272,2]
[348795201,1736787052131,-500.0,0.00010272,2]
[348795203,1736787052140,-500.0,0.00010272,2]
[348795204,1736787052150,-500.0,0.00010272,2]
[348795205,1736787052159,-746.3,0.00010272,2]
[348795206,1736787052168,-340.28228706,0.00010272,2]
[348795207,1736787052177,-500.0,0.00010272,2]
[348795208,1736787052186,-500.0,0.00010272,2]
[348795209,1736787052196,-607.69,0.00010272,2]
[348795210,1736787052206,-531.45,0.00010272,2]
[348795211,1736787052215,-500.0,0.00010272,2]
[348795212,1736787052225,-500.0,0.00010272,2]
[348795214,1736787052235,-761.74,0.00010272,2]
[348795216,1736787052244,-500.0,0.00010272,2]
[348795218,1736787052253,-805.6,0.00010272,2]
[348795220,1736787052262,-500.0,0.00010272,2]
[348795222,1736787052272,-608.67,0.00010272,2]
[348795224,1736787052281,-500.0,0.00010272,2]
[348795226,1736787052290,-500.0,0.00010272,2]
[348795228,1736787052300,-787.78,0.00010272,2]
[348795230,1736787052309,-500.0,0.00010272,2]
[348795232,1736787052319,-500.0,0.00010272,2]
[348795234,1736787052328,-500.0,0.00010272,2]
[348795236,1736787052337,-500.0,0.00010272,2]
[348795238,1736787052346,-500.0,0.00010272,2]
[348795240,1736787052356,-500.0,0.00010272,2]
[348795242,1736787052365,-500.0,0.00010272,2]
[348795244,1736787052374,-500.0,0.00010272,2]
[348795246,1736787052383,-1338.67,0.00010272,2]
[348795248,1736787052392,-395.37373169,0.00010272,2]
[348795250,1736787052401,-500.0,0.00010272,2]
[348795252,1736787052412,-500.0,0.00010272,2]
[348795254,1736787052423,-500.0,0.00010272,2]
[348795256,1736787052433,-500.0,0.00010272,2]
[348795258,1736787052442,-500.0,0.00010272,2]
[348795260,1736787052451,-500.0,0.00010272,2]
[348795262,1736787052460,-500.0,0.00010272,2]
[348795263,1736787052469,-500.0,0.00010272,2]
[348795265,1736787052479,-770.06,0.00010272,2]
[348795267,1736787052489,-500.0,0.00010272,2]
[348795269,1736787052498,-500.0,0.00010272,2]
[348795271,1736787052509,-500.0,0.00010272,2]
[348795273,1736787052519,-500.0,0.00010272,2]
[348795276,1736787052528,-500.0,0.00010272,2]
[348795277,1736787052538,-750.43,0.00010272,2]
[348795279,1736787052547,-500.0,0.00010272,2]
[348795281,1736787052557,-500.0,0.00010272,2]
[348795283,1736787052566,-500.0,0.00010272,2]
[348795286,1736787052575,-500.0,0.00010272,2]
[348795287,1736787052586,-500.0,0.00010272,2]
[348795289,1736787052595,-500.0,0.00010272,2]
[348795291,1736787052605,-500.0,0.00010272,2]
[348795294,1736787052615,-500.0,0.00010272,2]
[348795296,1736787052624,-500.0,0.00010272,2]
[348795297,1736787052633,-500.0,0.00010272,2]
[348795300,1736787052643,-500.0,0.00010272,2]
[348795301,1736787052653,-2630.65,0.00010272,2]
[348795304,1736787052662,-500.0,0.00010272,2]
[348795305,1736787052671,-500.0,0.00010272,2]
[348795307,1736787052680,-500.0,0.00010272,2]
[348795309,1736787052689,-500.0,0.00010272,2]
[348795311,1736787052699,-500.0,0.00010272,2]
[348795313,1736787052708,-500.0,0.00010272,2]
[348795315,1736787052717,-500.0,0.00010272,2]
[348795317,1736787052726,-500.0,0.00010272,2]
[348795319,1736787052736,-500.0,0.00010272,2]
[348795321,1736787052745,-500.0,0.00010272,2]
[348795323,1736787052754,-500.0,0.00010272,2]
[348795325,1736787052765,-500.0,0.00010272,2]
[348795327,1736787052774,-500.0,0.00010272,2]
[348795329,1736787052783,-1040.37,0.00010272,2]
[348795331,1736787052793,-500.0,0.00010272,2]
[348795333,1736787052803,-694.23,0.00010272,2]
[348795335,1736787052812,-500.0,0.00010272,2]
[348795337,1736787052821,-500.0,0.00010272,2]
[348795339,1736787052831,-275.99524734,0.00010272,2]
[348795341,1736787052840,-500.0,0.00010272,2]
[348795343,1736787052851,-500.0,0.00010272,2]
[348795345,1736787052861,-1392.43,0.00010272,2]
[348795347,1736787052871,-500.0,0.00010272,2]
[348795349,1736787052880,-500.0,0.00010272,2]
[348795351,1736787052890,-500.0,0.00010272,2]
[348795353,1736787052900,-766.72,0.00010272,2]
[348795355,1736787052909,-500.0,0.00010272,2]
[348795357,1736787052919,-500.0,0.00010272,2]
[348795359,1736787052928,-500.0,0.00010272,2]
[348795361,1736787052937,-586.89856661,0.00010272,2]
[348795363,1736787052946,-454.27804712,0.00010272,2]
[348795365,1736787052955,-500.0,0.00010272,2]
[348795367,1736787052964,-500.0,0.00010272,2]
[348795369,1736787052974,-500.0,0.00010272,2]
[348795371,1736787052983,-500.0,0.00010272,2]
[348795373,1736787052992,-500.0,0.00010272,2]
[348795375,1736787053001,-65.29279756,0.00010272,2]
[348795377,1736787053018,-440.62948638,0.00010272,2]
[348795380,1736787053029,-130.78439538,0.00010272,2]
[348795382,1736787053039,-500.0,0.00010272,2]
[348795384,1736787053049,-71.29026468,0.00010272,2]
[348795386,1736787053060,-417.59001623,0.00010272,2]
[348795388,1736787053070,-500.0,0.00010272,2]
[348795390,1736787053079,-1246.49,0.00010272,2]
[348795392,1736787053089,-493.88623147,0.00010272,2]
[348795395,1736787053109,-500.0,0.00010244,2]
[348795397,1736787053119,-248.24376853,0.00010272,2]
[348795399,1736787053128,-295.95623147,0.00010272,2]
[348795401,1736787053139,-204.04376853,0.00010272,2]
[348795403,1736787053148,-577.210036,0.00010272,2]
[348795405,1736787053157,-186.03377547,0.00010272,2]
[348795407,1736787053169,-313.96622453,0.00010272,2]
[348795409,1736787053178,-500.0,0.00010272,2]
[348795410,1736787053187,-500.0,0.00010272,2]
[348795411,1736787053196,-500.0,0.00010272,2]
[348795412,1736787053205,-500.0,0.00010272,2]
[348795413,1736787053214,-500.0,0.00010272,2]
[348795414,1736787053223,-500.0,0.00010272,2]
[348795415,1736787053232,-222.93377548,0.00010272,2]
[348797234,1736787115863,153.58,0.000209,31]
[348797235,1736787115927,153.58,0.000209,31]
[348797236,1736787115982,153.58,0.000209,31]
[348797237,1736787116029,153.58,0.000209,31]
[348797238,1736787116081,153.58,0.000209,31]
[348797239,1736787116141,153.58,0.000209,31]
[348797240,1736787116202,153.58,0.000209,31]
[348797242,1736787253225,4302.66227231,0.00021,30]
[348797247,1736787665566,800.22,8.219e-05,2]
[348797294,1736788232435,-1727.3,8.612e-05,2]
[348797295,1736788232446,-2410.12,8.612e-05,2]
[348797296,1736788232455,-678.4,8.709e-05,2]
[348797297,1736788232465,-255.8,8.757e-05,2]
[348797298,1736788232475,-1573.28574988,8.757e-05,2]
[348797299,1736788232485,-1000.0,8.821e-05,2]
[348797300,1736788232494,-4701.0,8.9e-05,2]
[348797301,1736788232504,-622.17,8.926e-05,2]
[348797302,1736788232513,-2805.88,9.006e-05,2]
[348797303,1736788232523,-462.85,9.023e-05,2]
[348797304,1736788232532,-23900.0,9.097e-05,2]
[348797305,1736788232541,-250.0,9.109e-05,2]
[348797306,1736788232551,-231.76,9.157e-05,2]
[348797307,1736788232561,-1267.18,9.185e-05,2]
[348797308,1736788232570,-200.0,9.233e-05,2]
[348797309,1736788232579,-165.35,9.257e-05,2]
[348797310,1736788232589,-250.0,9.281e-05,2]
[348797311,1736788232598,-1121.68,9.405e-05,2]
[348797312,1736788232610,-437.97,9.441e-05,2]
[348797313,1736788232619,-250.0,9.491e-05,2]
[348797314,1736788232629,-990.8136,9.81e-05,2]
[348797315,1736788232638,-255.8,9.851e-05,2]
[348797316,1736788232649,-390.9105469,9.869e-05,2]
[348797317,1736788232659,-48.89794754,9.87e-05,2]
[348797318,1736788232672,-3169.65525246,9.87e-05,2]
[348797319,1736788232681,-155.8674,9.898e-05,2]
[348797320,1736788232691,-1000.0,9.923e-05,2]
[348797321,1736788232700,-500.0,9.97e-05,2]
[348797322,1736788232709,-500.0,9.97e-05,2]
[348797323,1736788232718,-500.0,9.97e-05,2]
[348797324,1736788232728,-500.0,9.97e-05,2]
[348797325,1736788232737,-500.0,9.97e-05,2]
[348797326,1736788232746,-500.0,9.97e-05,2]
[348797327,1736788232756,-500.0,9.97e-05,2]
[348797328,1736788232766,-556.01,9.97e-05,2]
[348797329,1736788232775,-348.57,9.97e-05,2]
[348797330,1736788232785,-500.0,9.97e-05,2]
[348797331,1736788232796,-500.0,9.97e-05,2]
[348797332,1736788232806,-500.0,9.97e-05,2]
[348797333,1736788232815,-500.0,9.97e-05,2]
[348797334,1736788232824,-539.13,9.97e-05,2]
[348797335,1736788232834,-500.0,9.97e-05,2]
[348797336,1736788232842,-500.0,9.97e-05,2]
[348797337,1736788232852,-676.7,9.97e-05,2]
[348797338,1736788232862,-156.995149,9.97e-05,2]
[348797339,1736788232872,-500.0,9.97e-05,2]
[348797341,1736788232881,-500.0,9.97e-05,2]
[348797343,1736788232891,-500.0,9.97e-05,2]
[348797345,1736788232900,-600.45,9.97e-05,2]
[348797347,1736788232909,-500.0,9.97e-05,2]
[348797349,1736788232922,-500.0,9.97e-05,2]
[348797351,1736788232932,-500.0,9.97e-05,2]
[348797353,1736788232941,-500.0,9.97e-05,2]
[348797355,1736788232950,-500.0,9.97e-05,2]
[348797357,1736788232960,-500.0,9.97e-05,2]
[348797359,1736788232969,-500.0,9.97e-05,2]
[348797361,1736788232978,-500.0,9.97e-05,2]
[348797362,1736788232987,-500.0,9.97e-05,2]
[348797364,1736788232998,-500.0,9.97e-05,2]
[348797367,1736788233008,-500.0,9.97e-05,2]
[348797368,1736788233017,-500.0,9.97e-05,2]
[348797370,1736788233026,-500.0,9.97e-05,2]
[348797372,1736788233036,-500.0,9.97e-05,2]
[348797374,1736788233045,-500.0,9.97e-05,2]
[348797376,1736788233054,-500.0,9.97e-05,2]
[348797378,1736788233064,-500.0,9.97e-05,2]
[348797380,1736788233073,-505.05,9.97e-05,2]
[348797382,1736788233084,-500.0,9.97e-05,2]
[348797383,1736788233094,-500.0,9.97e-05,2]
[348797385,1736788233104,-500.0,9.97e-05,2]
[348797387,1736788233113,-500.0,9.97e-05,2]
[348797389,1736788233123,-752.61,9.97e-05,2]
[348797391,1736788233133,-500.0,9.97e-05,2]
[348797393,1736788233142,-500.0,9.97e-05,2]
[348797395,1736788233152,-500.0,9.97e-05,2]
[348797397,1736788233161,-500.0,9.97e-05,2]
[348797398,1736788233171,-500.0,9.97e-05,2]
[348797400,1736788233181,-500.0,9.97e-05,2]
[348797402,1736788233190,-500.0,9.97e-05,2]
[348797404,1736788233200,-500.0,9.97e-05,2]
[348797406,1736788233209,-500.0,9.97e-05,2]
[348797408,1736788233222,-500.97354598,9.97e-05,2]
[348797410,1736788233232,-500.0,9.97e-05,2]
[348797412,1736788233242,-500.0,9.97e-05,2]
[348797414,1736788233252,-669.72,9.97e-05,2]
[348797416,1736788233261,-500.0,9.97e-05,2]
[348797418,1736788233271,-776.55,9.97e-05,2]
[348797420,1736788233281,-845.99,9.97e-05,2]
[348797422,1736788233291,-500.0,9.97e-05,2]
[348797424,1736788233300,-500.0,9.97e-05,2]
[348797426,1736788233310,-500.0,9.97e-05,2]
[348797428,1736788233319,-500.0,9.97e-05,2]
[348797430,1736788233328,-500.0,9.97e-05,2]
[348797454,1736788233338,-500.0,9.97e-05,2]
[348797457,1736788233584,-500.0,9.97e-05,2]
[348797459,1736788233594,-500.0,9.97e-05,2]
[348797461,1736788233606,-500.0,9.97e-05,2]
[348797463,1736788233616,-500.0,9.97e-05,2]
[348797465,1736788233627,-500.0,9.97e-05,2]
[348797467,1736788233636,-500.0,9.97e-05,2]
[348797469,1736788233646,-500.0,9.97e-05,2]
[348797471,1736788233655,-176.56858223,9.97e-05,2]
[348797473,1736788233668,-323.43141777,9.97e-05,2]
[348797475,1736788233677,-500.0,9.97e-05,2]
[348797477,1736788233687,-500.0,9.97e-05,2]
[348797479,1736788233696,-414.80235023,9.97e-05,2]
[348797481,1736788233708,-85.19764977,9.97e-05,2]
[348797483,1736788233717,-500.0,9.97e-05,2]
[348797485,1736788233727,-214.80235023,9.97e-05,2]
[348797487,1736788233738,-285.19764977,9.97e-05,2]
[348797489,1736788233748,-623.56,9.97e-05,2]
[348797491,1736788233758,-500.0,9.97e-05,2]
[348797493,1736788233767,-500.0,9.97e-05,2]
[348797495,1736788233776,-500.0,9.97e-05,2]
[348797497,1736788233786,-500.0,9.97e-05,2]
[348797499,1736788233795,-500.0,9.97e-05,2]
[348797501,1736788233804,-500.0,9.97e-05,2]
[348797503,1736788233813,-567.62,9.97e-05,2]
[348797505,1736788233822,-500.0,9.97e-05,2]
[348797507,1736788233832,-500.0,9.97e-05,2]
[348797509,1736788233840,-500.0,9.97e-05,2]
[348797511,1736788233849,-500.0,9.97e-05,2]
[348797512,1736788233860,-500.0,9.97e-05,2]
[348797514,1736788233870,-762.87,9.97e-05,2]
[348797516,1736788233879,-820.55,9.97e-05,2]
[348797518,1736788233889,-500.0,9.97e-05,2]
[348797520,1736788233899,-597.65,9.97e-05,2]
[348797522,1736788233909,-578.05,9.97e-05,2]
[348797524,1736788233922,-500.0,9.97e-05,2]
[348797526,1736788233931,-603.26,9.97e-05,2]
[348797528,1736788233940,-500.0,9.97e-05,2]
[348797530,1736788233951,-151.0,9.991e-05,2]
[348797532,1736788233961,-151.0,9.991e-05,2]
[348797534,1736788233970,-1733.47,9.996e-05,2]
[348797536,1736788233979,-581.12,9.996e-05,2]
[348797538,1736788233990,-1463.84,9.996e-05,2]
[348797540,1736788233999,-2660.90722108,9.996e-05,2]
[348797543,1736788234028,-497.26063439,9.996e-05,2]
[348797545,1736788234041,-2123.99214453,9.996e-05,2]
[348797547,1736788234051,-639.59100291,9.996e-05,2]
[348797549,1736788234060,-92.33260244,9.996e-05,2]
[348797930,1736788238427,-500.0,9.97e-05,2]
[348797933,1736788238437,-542.53739756,9.996e-05,2]
[348797935,1736788238447,-516.18,9.996e-05,2]
[348797937,1736788238456,-1660.23,9.996e-05,2]
[348797939,1736788238466,-951.88,9.996e-05,2]
[348797940,1736788238475,-2190.4,9.996e-05,2]
[348797943,1736788238484,-500.0,9.996e-05,2]
[348797945,1736788238493,-1044.69,9.996e-05,2]
[348797946,1736788238503,-1912.79,9.996e-05,2]
[348797948,1736788238513,-500.0,9.996e-05,2]
[348797950,1736788238523,-1008.29,9.996e-05,2]
[348797952,1736788238532,-500.0,9.996e-05,2]
[348797954,1736788238542,-2334.02,9.996e-05,2]
[348797956,1736788238552,-3517.97,9.996e-05,2]
[348797958,1736788238561,-500.0,9.996e-05,2]
[348797960,1736788238571,-939.34,9.996e-05,2]
[348797962,1736788238580,-500.0,9.996e-05,2]
[348797964,1736788238589,-151.47234954,9.996e-05,2]
[348797967,1736788238600,-348.52765046,9.996e-05,2]
[348797969,1736788238611,-500.0,9.996e-05,2]
[348797971,1736788238620,-755.66,9.996e-05,2]
[348797973,1736788238629,-500.0,9.996e-05,2]
[348797975,1736788238638,-500.0,9.996e-05,2]
[348797977,1736788238647,-500.0,9.996e-05,2]
[348797978,1736788238657,-500.0,9.996e-05,2]
[348797980,1736788238666,-500.0,9.996e-05,2]
[348797982,1736788238676,-500.0,9.996e-05,2]
[348797984,1736788238685,-500.0,9.996e-05,2]
[348797986,1736788238694,-500.0,9.996e-05,2]
[348797988,1736788238703,-500.0,9.996e-05,2]
[348797990,1736788238712,-1115.88,9.996e-05,2]
[348797993,1736788238722,-500.0,9.996e-05,2]
[348797995,1736788238731,-500.0,9.996e-05,2]
[348797997,1736788238741,-1435.12,9.996e-05,2]
[348797999,1736788238750,-994.21,9.997e-05,2]
[348798001,1736788238759,-500.0,9.997e-05,2]
[348798002,1736788238769,-500.0,9.997e-05,2]
[348798005,1736788238780,-500.0,9.997e-05,2]
[348798007,1736788238790,-500.0,9.997e-05,2]
[348798008,1736788238799,-500.0,9.997e-05,2]
[348798011,1736788238813,-500.0,9.997e-05,2]
[348798013,1736788238822,-500.0,9.997e-05,2]
[348798015,1736788238831,-500.0,9.997e-05,2]
[348798017,1736788238840,-980.79,9.997e-05,2]
[348798019,1736788238849,-477.31115988,9.997e-05,2]
[348798021,1736788238861,-500.0,9.997e-05,2]
[348798023,1736788238872,-500.0,9.997e-05,2]
[348798025,1736788238882,-500.0,9.997e-05,2]
[348798027,1736788238891,-500.0,9.997e-05,2]
[348798029,1736788238901,-500.0,9.997e-05,2]
[348798031,1736788238911,-261.09118971,9.997e-05,2]
[348798033,1736788238927,-238.90881029,9.997e-05,2]
[348798035,1736788238936,-500.0,9.997e-05,2]
[348798037,1736788238946,-500.0,9.997e-05,2]
[348798039,1736788238957,-500.0,9.997e-05,2]
[348798041,1736788238966,-500.0,9.997e-05,2]
[348798043,1736788238975,-500.0,9.997e-05,2]
[348798045,1736788238985,-500.0,9.997e-05,2]
[348798047,1736788238995,-500.0,9.997e-05,2]
[348798049,1736788239005,-500.0,9.997e-05,2]
[348798051,1736788239015,-500.0,9.997e-05,2]
[348798053,1736788239025,-500.0,9.997e-05,2]
[348798056,1736788239036,-500.0,9.997e-05,2]
[348798057,1736788239046,-500.0,9.997e-05,2]
[348798060,1736788239056,-500.0,9.997e-05,2]
[348798062,1736788239066,-500.0,9.997e-05,2]
[348798065,1736788239075,-500.0,9.997e-05,2]
[348798069,1736788239085,-500.0,9.997e-05,2]
[348798072,1736788239095,-552.96,9.997e-05,2]
[348798075,1736788239105,-500.0,9.997e-05,2]
[348798077,1736788239116,-500.0,9.997e-05,2]
[348798080,1736788239126,-500.0,9.997e-05,2]
[348798082,1736788239135,-500.0,9.997e-05,2]
[348798085,1736788239145,-688.71,9.997e-05,2]
[348798088,1736788239154,-500.0,9.997e-05,2]
[348798091,1736788239163,-500.0,9.997e-05,2]
[348798094,1736788239173,-500.0,9.997e-05,2]
[348798097,1736788239183,-500.0,9.997e-05,2]
[348798100,1736788239193,-500.0,9.997e-05,2]
[348798103,1736788239203,-500.0,9.997e-05,2]
[348798106,1736788239212,-500.0,9.997e-05,2]
[348798109,1736788239222,-500.0,9.997e-05,2]
[348798112,1736788239232,-500.0,9.997e-05,2]
[348798115,1736788239241,-500.57443966,9.997e-05,2]
[348798117,1736788239251,-500.0,9.997e-05,2]
[348798119,1736788239260,-500.0,9.997e-05,2]
[348798121,1736788239270,-500.0,9.997e-05,2]
[348798123,1736788239280,-500.0,9.997e-05,2]
[348798125,1736788239290,-500.0,9.997e-05,2]
[348798127,1736788239299,-500.0,9.997e-05,2]
[348798129,1736788239308,-118.84675005,9.997e-05,2]
[348798170,1736788239707,-381.15324995,9.997e-05,2]
[348798172,1736788239718,-107.89674839,9.997e-05,2]
[348798175,1736788239729,-392.58332527,9.997e-05,2]
[348798177,1736788239739,-500.0,9.997e-05,2]
[348798179,1736788239748,-500.0,9.997e-05,2]
[348798181,1736788239758,-500.0,9.997e-05,2]
[348798183,1736788239767,-500.0,9.997e-05,2]
[348798184,1736788239776,-500.0,9.997e-05,2]
[348798186,1736788239785,-500.51685606,9.997e-05,2]
[348798188,1736788239794,-500.0,9.997e-05,2]
[348798190,1736788239803,-500.0,9.997e-05,2]
[348798192,1736788239812,-500.0,9.997e-05,2]
[348798194,1736788239821,-500.0,9.997e-05,2]
[348798196,1736788239831,-1717.15,9.997e-05,2]
[348798198,1736788239840,-500.0,9.997e-05,2]
[348798200,1736788239849,-500.0,9.997e-05,2]
[348798202,1736788239860,-500.0,9.997e-05,2]
[348798204,1736788239870,-500.0,9.997e-05,2]
[348798206,1736788239880,-15.05246193,9.997e-05,2]
[348798208,1736788239892,-486.86346849,9.997e-05,2]
[348798210,1736788239902,-500.0,9.997e-05,2]
[348798212,1736788239915,-566.350055,9.997e-05,2]
[348798214,1736788239924,-364.05441234,9.997e-05,2]
[348798216,1736788239934,-500.0,9.997e-05,2]
[348798218,1736788239944,-500.66630858,9.997e-05,2]
[348798220,1736788239955,-500.0,9.997e-05,2]
[348798222,1736788239963,-500.0,9.997e-05,2]
[348798224,1736788239973,-500.0,9.997e-05,2]
[348798226,1736788239983,-500.0,9.997e-05,2]
[348798228,1736788239995,-500.0,9.997e-05,2]
[348798230,1736788240005,-458.31105258,9.997e-05,2]
[348798232,1736788240015,-500.0,9.997e-05,2]
[348798234,1736788240025,-500.0,9.997e-05,2]
[348798236,1736788240035,-500.0,9.997e-05,2]
[348798238,1736788240044,-500.0,9.997e-05,2]
[348798240,1736788240054,-500.0,9.997e-05,2]
[348798242,1736788240063,-500.0,9.997e-05,2]
[348798244,1736788240073,-500.0,9.997e-05,2]
[348798246,1736788240083,-500.0,9.997e-05,2]
[348798248,1736788240092,-500.0,9.997e-05,2]
[348798250,1736788240102,-500.0,9.997e-05,2]
[348798252,1736788240114,-500.0,9.997e-05,2]
[348798254,1736788240123,-11.88788214,9.997e-05,2]
[348798257,1736788240135,-488.11211786,9.997e-05,2]
[348798288,1736788240379,-500.0,9.997e-05,2]
[348798290,1736788240389,-159.97340873,9.997e-05,2]
[348798293,1736788240401,-609.45558927,9.997e-05,2]
[348798295,1736788240411,-500.0,9.997e-05,2]
[348798297,1736788240421,-500.0,9.997e-05,2]
[348798299,1736788240430,-57.70916498,9.997e-05,2]
[348798301,1736788240441,-442.29083502,9.997e-05,2]
[348798303,1736788240451,-500.0,9.997e-05,2]
[348798305,1736788240460,-183.245995,9.997e-05,2]
[348798307,1736788240469,-687.06,9.997e-05,2]
[348798309,1736788240479,-500.0,9.997e-05,2]
[348798311,1736788240488,-422.98939581,9.997e-05,2]
[348798315,1736788240521,-77.01060419,9.997e-05,2]
[348798316,1736788240530,-500.0,9.997e-05,2]
[348798317,1736788240539,-351.23739476,9.997e-05,2]
[348798318,1736788240550,-148.76260524,9.997e-05,2]
[348798319,1736788240559,-500.0,9.997e-05,2]
[348798320,1736788240568,-500.0,9.997e-05,2]
[348798321,1736788240577,-500.0,9.997e-05,2]
[348798322,1736788240586,-657.29,9.997e-05,2]
[348798323,1736788240596,-566.85,9.997e-05,2]
[348798324,1736788240605,-500.0,9.997e-05,2]
[348798325,1736788240615,-215.04119446,9.997e-05,2]
[348798326,1736788240624,-500.0,9.997e-05,2]
[348798327,1736788240633,-174.49265737,9.997e-05,2]
[348798328,1736788240642,-500.0,9.997e-05,2]
[348798329,1736788240651,-551.1140989,9.997e-05,2]
[348798330,1736788240660,-500.0,9.997e-05,2]
[348798331,1736788240669,-224.01674793,9.997e-05,2]
[348798332,1736788240689,-275.98325207,9.997e-05,2]
[348798333,1736788240698,-500.0,9.997e-05,2]
[348798334,1736788240707,-500.0,9.997e-05,2]
[348798336,1736788240716,-500.0,9.997e-05,2]
[348798337,1736788240726,-500.0,9.997e-05,2]
[348798339,1736788240735,-500.0,9.997e-05,2]
[348798341,1736788240744,-500.0,9.997e-05,2]
[348798343,1736788240753,-500.0,9.997e-05,2]
[348798345,1736788240763,-500.0,9.997e-05,2]
[348798347,1736788240772,-500.0,9.997e-05,2]
[348798349,1736788240782,-832.85,9.997e-05,2]
[348798351,1736788240791,-500.0,9.997e-05,2]
[348798353,1736788240800,-500.0,9.997e-05,2]
[348798355,1736788240809,-500.0,9.997e-05,2]
[348798357,1736788240818,-500.0,9.997e-05,2]
[348798359,1736788240827,-500.0,9.997e-05,2]
[348798361,1736788240837,-500.0,9.997e-05,2]
[348798363,1736788240846,-500.0,9.997e-05,2]
[348798365,1736788240857,-500.0,9.997e-05,2]
[348798367,1736788240867,-500.0,9.997e-05,2]
[348798369,1736788240876,-500.0,9.997e-05,2]
[348798371,1736788240886,-500.0,9.997e-05,2]
[348798373,1736788240895,-500.0,9.997e-05,2]
[348798374,1736788240905,-500.0,9.997e-05,2]
[348798376,1736788240915,-500.0,9.997e-05,2]
[348798378,1736788240927,-500.0,9.997e-05,2]
[348798380,1736788240937,-158.9431274,9.997e-05,2]
[348798382,1736788240946,-786.88,9.997e-05,2]
[348798385,1736788240956,-500.0,9.997e-05,2]
[348798386,1736788240966,-500.0,9.997e-05,2]
[348798389,1736788240976,-500.0,9.997e-05,2]
[348798390,1736788240986,-500.0,9.997e-05,2]
[348798392,1736788240995,-500.0,9.997e-05,2]
[348798394,1736788241006,-500.0,9.997e-05,2]
[348798396,1736788241016,-500.0,9.997e-05,2]
[348798398,1736788241026,-1264.09,9.997e-05,2]
[348798400,1736788241036,-500.0,9.997e-05,2]
[348798402,1736788241046,-500.0,9.997e-05,2]
[348798405,1736788241057,-500.0,9.997e-05,2]
[348798406,1736788241067,-500.0,9.997e-05,2]
[348798408,1736788241077,-500.0,9.997e-05,2]
[348798410,1736788241086,-500.0,9.997e-05,2]
[348798412,1736788241096,-738.62,9.997e-05,2]
[348798414,1736788241107,-500.0,9.997e-05,2]
[348798416,1736788241117,-500.0,9.997e-05,2]